[Event "Fagernes Chess Open 2024"]
[Site "Fagernes"]
[Date "2024.03.28"]
[Round "6.7"]
[White "Lahlum, Ida"]
[Black "Nordahl, Christine"]
[Result "0-1"]
[ECO "A08"]
[WhiteElo "1755"]
[BlackElo "1673"]
[Annotator "NA RC"]
[PlyCount "92"]
[EventDate "2024.03.25"]
[EventType "swiss"]
[EventCountry "NOR"]
[SourceTitle "playchess.com"]
[Source "ChessBase"]
[SourceQuality "1"]
[TimeControl "40/6000+30:2400+30"]

1. Nf3 {[%emt 0:00:03]} c5 {[%emt 0:00:52]} 2. g3 {[%emt 0:00:06]} Nc6 {[%emt 0:00:20]} 3. Bg2 {[%emt 0:00:07]} d5 {[%emt 0:01:11]} 4. d3 {[%emt 0:00:11]} Nf6 {[%emt 0:00:30]} 5. O-O {[%emt 0:00:20]} e6 {[%emt 0:02:32]} 6. Bg5 {[%emt 0:02:03]} Be7 {[%emt 0:02:01]} 7. Nbd2 {[%emt 0:02:17]} h6 {[%emt 0:01:32]} 8. Bxf6 {[%emt 0:03:31]} Bxf6 {[%emt 0:00:07]} 9. c3 {[%emt 0:02:00]} O-O {[%emt 0:03:26]} 10. e4 {[%emt 0:06:20]} Qb6 {[%emt 0:11:03]} 11. Qc2 {[%emt 0:03:28]} Rd8 {[%emt 0:04:57]} 12. Rfe1 {[%emt 0:05:17]} Qc7 {[%emt 0:02:37]} 13. Rad1 {[%emt 0:10:21]} d4 {[%emt 0:04:25]} 14. Nc4 {[%emt 0:11:26]} b5 {[%emt 0:05:17]} 15. e5 {[%emt 0:08:26]} Be7 {[%emt 0:01:13]} 16. Ncd2 {[%emt 0:02:38]} Rb8 {[%emt 0:04:28]} 17. cxd4 {[%emt 0:07:07]} Nxd4 {[%emt 0:01:03]} 18. Nxd4 {[%emt 0:00:15]} Rxd4 {[%emt 0:00:06]} 19. Nb3 {[%emt 0:02:08]} Rd7 {[%emt 0:00:35]} 20. Qe2 {[%emt 0:06:43]} Bb7 {[%emt 0:05:02]} 21. Rc1 {[%emt 0:05:57]} Bxg2 {[%emt 0:01:51]} 22. Kxg2 {[%emt 0:00:04]} Qc6+ {[%emt 0:00:10]} 23. Kg1 {[%emt 0:01:13]} Rbd8 {[%emt 0:03:31]} 24. Red1 {[%emt 0:01:52]} Qb6 {[%emt 0:00:47]} 25. Rd2 {[%emt 0:05:37]} Bg5 {[%emt 0:05:56]} 26. Nxc5 {[%emt 0:05:33]} Rc7 {[%emt 0:02:27]} 27. b4 {[%emt 0:02:37]} Bxd2 {[%emt 0:01:22]} 28. Qxd2 {[%emt 0:00:07]} Rd5 {[%emt 0:01:43]} 29. d4 {[%emt 0:01:12]} Rc8 {[%emt 0:00:45]} 30. Rd1 {[%emt 0:02:41]} Rcd8 {[%emt 0:04:51]} 31. Qc3 {[%emt 0:01:40]} Rxe5 {[%emt 0:01:08]} 32. f4 {[%emt 0:07:39]} Red5 {[%emt 0:05:39]} 33. Qe3 {[%emt 0:01:44]} a5 {[%emt 0:02:17]} 34. a3 {[%emt 0:00:14]} axb4 {[%emt 0:00:14]} 35. axb4 {[%emt 0:00:02]} Qa7 {[%emt 0:00:26]} 36. Qc3 {[%emt 0:01:59]} Ra8 {[%emt 0:06:23]} 37. Qd3 {[%emt 0:01:19]} Qa2 {[%emt 0:05:26]} 38. Qe4 {[%emt 0:00:55]} Qb2 {[%emt 0:00:47]} 39. Nd3 {[%emt 0:01:49]} Qxd4+ {[%emt 0:01:38]} 40. Qxd4 {[%emt 0:00:07]} Rxd4 {[%emt 0:00:06]} 41. Kf2 {[%emt 0:01:44]} Ra2+ {[%emt 0:03:17]} 42. Ke3 {[%emt 0:02:09]} Rd5 {[%emt 0:00:51]} 43. h3 {[%emt 0:02:18]} f6 {[%emt 0:02:59]} 44. Ke4 {[%emt 0:05:06]} Ra4 {[%emt 0:00:38]} 45. Rc1 {[%emt 0:00:56]} Ra3 {[%emt 0:03:18]} 46. Nc5 {[%emt 0:00:56]} f5# {[%emt 0:00:32]} 0-1

[Event "Fagernes Chess Open 2024"]
[Site "Fagernes"]
[Date "2024.03.28"]
[Round "6.8"]
[White "Vollheim, Daniel O"]
[Black "Johansson, Henrik"]
[Result "0-1"]
[ECO "A10"]
[WhiteElo "1713"]
[BlackElo "1736"]
[Annotator "NA RC"]
[PlyCount "40"]
[EventDate "2024.03.25"]
[EventType "swiss"]
[EventCountry "NOR"]
[SourceTitle "playchess.com"]
[Source "ChessBase"]
[SourceQuality "1"]
[TimeControl "40/6000+30:2400+30"]

1. c4 {[%emt 0:00:01]} b6 {[%emt 0:01:15]} 2. Nc3 {[%emt 0:00:25]} Bb7 {[%emt 0:00:23]} 3. Nf3 {[%emt 0:00:28]} d6 {[%emt 0:05:13]} 4. d4 {[%emt 0:00:53]} Nd7 {[%emt 0:01:01]} 5. e4 {[%emt 0:00:34]} e5 {[%emt 0:06:45]} 6. d5 {[%emt 0:02:25]} Ngf6 {[%emt 0:03:54]} 7. Bd3 {[%emt 0:01:03]} Be7 {[%emt 0:06:21]} 8. O-O {[%emt 0:00:34]} O-O {[%emt 0:00:22]} 9. Bg5 {[%emt 0:00:56]} Nxd5 {[%emt 0:04:24]} 10. Nxd5 {[%emt 0:00:32]} Bxg5 {[%emt 0:00:49]} 11. Nxg5 {[%emt 0:00:26]} c6 {[%emt 0:06:37]} 12. Nxh7 {[%emt 0:01:09]} Kxh7 {[%emt 0:01:24]} 13. Nc3 {[%emt 0:00:35]} Qg5 {[%emt 0:05:36]} 14. Ne2 {[%emt 0:01:48]} Rh8 {[%emt 0:03:26]} 15. f4 {[%emt 0:00:38]} exf4 {[%emt 0:01:52]} 16. Nxf4 {[%emt 0:01:30]} Kg8 {[%emt 0:01:19]} 17. Be2 {[%emt 0:02:31]} Nf6 {[%emt 0:04:24]} 18. Qxd6 {[%emt 0:02:55]} Nxe4 {[%emt 0:05:45]} 19. Qc7 {[%emt 0:00:51]} Qc5+ {[%emt 0:03:50]} 20. Kh1 {[%emt 0:00:52]} Ng3# {[%emt 0:00:16]} 0-1

[Event "Fagernes Chess Open 2024"]
[Site "Fagernes"]
[Date "2024.03.29"]
[Round "7.1"]
[White "Hausken, Andreas Skrede"]
[Black "Strand, Amund Pihl"]
[Result "1/2-1/2"]
[ECO "E17"]
[WhiteElo "1963"]
[BlackElo "1860"]
[Annotator "RC"]
[PlyCount "27"]
[EventDate "2024.03.25"]
[EventType "swiss"]
[EventCountry "NOR"]
[SourceTitle "playchess.com"]
[Source "ChessBase"]
[SourceQuality "1"]
[TimeControl "40/6000+30:2400+30"]

1. d4 {[%emt 0:23:42]} d5 {[%emt 0:00:14]} 2. c4 {[%emt 0:01:12]} e6 {[%emt 0:00:15]} 3. Nf3 {[%emt 0:00:36]} Nf6 {[%emt 0:00:10]} 4. g3 {[%emt 0:00:11]} Be7 {[%emt 0:00:15]} 5. Bg2 {[%emt 0:00:06]} O-O {[%emt 0:00:07]} 6. O-O {[%emt 0:00:04]} b6 {[%emt 0:10:37]} 7. Qc2 {[%emt 0:03:40]} Bb7 {[%emt 0:01:03]} 8. Bg5 {[%emt 0:02:28]} Nbd7 {[%emt 0:03:26]} 9. Rd1 {[%emt 0:03:13]} Rc8 {[%emt 0:10:07]} 10. Nc3 {[%emt 0:12:51]} c5 {[%emt 0:06:24]} 11. cxd5 {[%emt 0:04:37]} Nxd5 {[%emt 0:01:28]} 12. Nxd5 {[%emt 0:00:55]} Bxd5 {[%emt 0:08:49]} 13. Bxe7 {[%emt 0:00:44]} Qxe7 {[%emt 0:00:57]} 14. dxc5 {[%emt 0:02:42]} 1/2-1/2

[Event "Fagernes Chess Open 2024"]
[Site "Fagernes"]
[Date "2024.03.29"]
[Round "7.2"]
[White "Sushrutha, Reddy"]
[Black "Brattgjerd, August Minh"]
[Result "1/2-1/2"]
[ECO "C02"]
[WhiteElo "1707"]
[BlackElo "1689"]
[Annotator "NA RC"]
[PlyCount "125"]
[EventDate "2024.03.25"]
[EventType "swiss"]
[EventCountry "NOR"]
[SourceTitle "playchess.com"]
[Source "ChessBase"]
[SourceQuality "1"]
[TimeControl "40/6000+30:2400+30"]

1. e4 {[%emt 0:03:41]} e6 {[%emt 0:00:04]} 2. d4 {[%emt 0:00:10]} d5 {[%emt 0:00:16]} 3. e5 {[%emt 0:00:03]} c5 {[%emt 0:00:25]} 4. c3 {[%emt 0:00:02]} Bd7 {[%emt 0:00:18]} 5. Nf3 {[%emt 0:00:19]} Qb6 {[%emt 0:00:39]} 6. Bd3 {[%emt 0:00:27]} Bb5 {[%emt 0:01:04]} 7. O-O {[%emt 0:00:22]} Bxd3 {[%emt 0:01:01]} 8. Qxd3 {[%emt 0:00:03]} Nc6 {[%emt 0:00:22]} 9. a3 {[%emt 0:00:10]} Nge7 {[%emt 0:06:21]} 10. b4 {[%emt 0:03:10]} c4 {[%emt 0:01:35]} 11. Qc2 {[%emt 0:00:15]} a5 {[%emt 0:00:26]} 12. Bb2 {[%emt 0:05:17]} Nf5 {[%emt 0:05:12]} 13. g4 {[%emt 0:00:41]} Nfe7 {[%emt 0:00:28]} 14. Ng5 {[%emt 0:01:01]} h5 {[%emt 0:01:41]} 15. h3 {[%emt 0:01:40]} hxg4 {[%emt 0:04:37]} 16. hxg4 {[%emt 0:00:17]} Rh4 {[%emt 0:00:41]} 17. Qe2 {[%emt 0:00:30]} Ng6 {[%emt 0:02:20]} 18. Qf3 {[%emt 0:06:16]} Qc7 {[%emt 0:00:34]} 19. Qg3 {[%emt 0:01:45]} Be7 {[%emt 0:04:55]} 20. Nf3 {[%emt 0:05:49]} Rh7 {[%emt 0:02:53]} 21. b5 {[%emt 0:00:22]} Na7 {[%emt 0:00:54]} 22. a4 {[%emt 0:00:06]} O-O-O {[%emt 0:00:43]} 23. Bc1 {[%emt 0:04:24]} Rdh8 {[%emt 0:05:20]} 24. Be3 {[%emt 0:00:53]} Nh4 {[%emt 0:10:39]} 25. Nbd2 {[%emt 0:00:55]} Qd8 {[%emt 0:07:55]} 26. Nxh4 {[%emt 0:01:38]} Bxh4 {[%emt 0:00:29]} 27. Qf4 {[%emt 0:00:43]} Be7 {[%emt 0:01:25]} 28. Kg2 {[%emt 0:01:17]} Qg8 {[%emt 0:05:43]} 29. Rh1 {[%emt 0:03:45]} Rxh1 {[%emt 0:00:09]} 30. Rxh1 {[%emt 0:00:15]} Rxh1 {[%emt 0:00:10]} 31. Kxh1 {[%emt 0:00:03]} Qh7+ {[%emt 0:00:11]} 32. Kg2 {[%emt 0:00:18]} g6 {[%emt 0:00:24]} 33. Nf3 {[%emt 0:00:43]} Kd7 {[%emt 0:01:22]} 34. Bc1 {[%emt 0:02:28]} Nc8 {[%emt 0:03:09]} 35. Qd2 {[%emt 0:00:38]} Nb6 {[%emt 0:01:02]} 36. Qa2 {[%emt 0:00:38]} Qh8 {[%emt 0:02:29]} 37. Ba3 {[%emt 0:01:19]} Qf8 {[%emt 0:00:11]} 38. Bc1 {[%emt 0:00:33]} Ke8 {[%emt 0:00:36]} 39. Nh2 {[%emt 0:02:14]} Qh8 {[%emt 0:03:43]} 40. Qc2 {[%emt 0:01:29]} Qh4 {[%emt 0:02:49]} 41. Bf4 {[%emt 0:40:52]} Bg5 {[%emt 0:41:34]} 42. Bg3 {[%emt 0:03:29]} Qh6 {[%emt 0:01:41]} 43. Qa2 {[%emt 0:00:22]} Bf4 {[%emt 0:01:14]} 44. Bxf4 {[%emt 0:01:24]} Qxf4 {[%emt 0:00:03]} 45. Qa3 {[%emt 0:00:04]} Qg5 {[%emt 0:01:10]} 46. Kg3 {[%emt 0:04:09]} Qe7 {[%emt 0:03:21]} 47. Qa2 {[%emt 0:00:16]} Nd7 {[%emt 0:00:37]} 48. f4 {[%emt 0:00:45]} f6 {[%emt 0:04:35]} 49. Nf3 {[%emt 0:01:36]} Kf7 {[%emt 0:05:14]} 50. Qh2 {[%emt 0:01:39]} Kg8 {[%emt 0:02:55]} 51. exf6 {[%emt 0:01:01]} Nxf6 {[%emt 0:01:53]} 52. Ng5 {[%emt 0:01:02]} Nh7 {[%emt 0:04:41]} 53. Qh6 {[%emt 0:08:17]} Nf8 {[%emt 0:04:45]} 54. Qh1 {[%emt 0:02:20]} Qa3 {[%emt 0:00:00]} 55. Qe1 {[%emt 0:00:00]} Qd6 {[%emt 0:00:00]} 56. Qb1 {[%emt 0:00:00]} Kg7 {[%emt 0:00:00]} 57. Qh1 {[%emt 0:00:00]} Qe7 {[%emt 0:00:00]} 58. Nf3 {[%emt 0:00:00]} Nd7 {[%emt 0:00:00]} 59. g5 {[%emt 0:00:00]} Qf7 {[%emt 0:00:00]} 60. Qe1 {[%emt 0:00:00]} Qf5 {[%emt 0:00:00]} 61. Ne5 {[%emt 0:00:00]} Nxe5 {[%emt 0:00:00]} 62. Qxe5+ {[%emt 0:00:00]} Qxe5 {[%emt 0:00:00]} 63. fxe5 {[%emt 0:00:00]} 1/2-1/2

[Event "Fagernes Chess Open 2024"]
[Site "Fagernes"]
[Date "2024.03.29"]
[Round "7.3"]
[White "Halvorsen, Benjamin"]
[Black "Rolstad, Morten"]
[Result "1/2-1/2"]
[ECO "B38"]
[WhiteElo "1848"]
[BlackElo "1879"]
[Annotator "NA RC"]
[PlyCount "81"]
[EventDate "2024.03.25"]
[EventType "swiss"]
[EventCountry "NOR"]
[SourceTitle "playchess.com"]
[Source "ChessBase"]
[SourceQuality "1"]
[TimeControl "40/6000+30:2400+30"]

1. e4 {[%emt 0:03:34]} c5 {[%emt 0:00:27]} 2. Nf3 {[%emt 0:00:08]} g6 {[%emt 0:01:02]} 3. d4 {[%emt 0:00:22]} cxd4 {[%emt 0:00:08]} 4. Nxd4 {[%emt 0:00:05]} Bg7 {[%emt 0:00:35]} 5. c4 {[%emt 0:00:46]} Nc6 {[%emt 0:01:00]} 6. Be3 {[%emt 0:00:49]} Nf6 {[%emt 0:00:38]} 7. Nc3 {[%emt 0:00:15]} d6 {[%emt 0:00:53]} 8. Be2 {[%emt 0:00:30]} O-O {[%emt 0:00:17]} 9. O-O {[%emt 0:00:32]} a6 {[%emt 0:01:25]} 10. Rb1 {[%emt 0:10:12]} Nxd4 {[%emt 0:08:05]} 11. Bxd4 {[%emt 0:00:16]} Be6 {[%emt 0:00:33]} 12. f4 {[%emt 0:09:47]} Rc8 {[%emt 0:10:56]} 13. b3 {[%emt 0:00:22]} Ne8 {[%emt 0:11:54]} 14. f5 {[%emt 0:09:33]} Bd7 {[%emt 0:04:31]} 15. Nd5 {[%emt 0:06:46]} Bc6 {[%emt 0:02:38]} 16. Bxg7 $14 {[%emt 0:08:50]} Kxg7 {[%emt 0:06:18]} 17. Qd4+ {[%emt 0:00:28]} Kg8 {[%emt 0:01:15]} 18. Bg4 {[%emt 0:01:19]} Rb8 {[%emt 0:08:42]} 19. Rf3 {[%emt 0:08:28]} Bxd5 {[%emt 0:02:18]} 20. exd5 {[%emt 0:00:38]} Nf6 {[%emt 0:11:00]} 21. fxg6 {[%emt 0:02:53]} hxg6 {[%emt 0:00:00]} 22. Rh3 {[%emt 0:01:24]} b5 {[%emt 0:00:13]} 23. Be2 {[%emt 0:15:12]} Qb6 {[%emt 0:07:21]} 24. Qxb6 {[%emt 0:00:26]} Rxb6 {[%emt 0:00:07]} 25. Re3 {[%emt 0:00:54]} bxc4 {[%emt 0:04:12]} 26. Bxc4 {[%emt 0:00:24]} Re8 {[%emt 0:01:33]} 27. a4 {[%emt 0:07:42]} Ng4 {[%emt 0:18:14]} 28. Re4 {[%emt 0:01:34]} Ne5 {[%emt 0:00:24]} 29. a5 {[%emt 0:04:46]} Rb4 {[%emt 0:01:22]} 30. Rbe1 {[%emt 0:03:02]} Reb8 {[%emt 0:03:00]} 31. Bxa6 {[%emt 0:02:48]} Rxb3 {[%emt 0:00:14]} 32. Ra4 {[%emt 0:00:39]} Ra8 {[%emt 0:03:18]} 33. Bf1 {[%emt 0:01:54]} f5 {[%emt 0:00:47]} 34. a6 {[%emt 0:00:51]} Kf7 {[%emt 0:00:28]} 35. Rc1 {[%emt 0:01:44]} Ra7 {[%emt 0:00:47]} 36. Ra5 {[%emt 0:01:15]} Nd7 {[%emt 0:00:31]} 37. Rc6 {[%emt 0:03:56]} Ne5 {[%emt 0:01:04]} 38. Rc8 {[%emt 0:01:22]} Nd7 {[%emt 0:00:22]} 39. Bb5 {[%emt 0:02:30]} Nc5 {[%emt 0:00:56]} 40. Rb8 {[%emt 0:00:54]} Kg7 {[%emt 0:00:28]} 41. Rb6 {[%emt 0:04:31]} 1/2-1/2

[Event "Fagernes Chess Open 2024"]
[Site "Fagernes"]
[Date "2024.03.29"]
[Round "7.4"]
[White "Johansson, Henrik"]
[Black "Kittilsen, Sigurd"]
[Result "0-1"]
[ECO "D04"]
[WhiteElo "1736"]
[BlackElo "1910"]
[Annotator "NA RC"]
[PlyCount "66"]
[EventDate "2024.03.25"]
[EventType "swiss"]
[EventCountry "NOR"]
[SourceTitle "playchess.com"]
[Source "ChessBase"]
[SourceQuality "1"]
[TimeControl "40/6000+30:2400+30"]

1. d4 {[%emt 0:00:20]} d5 {[%emt 0:00:07]} 2. Nf3 {[%emt 0:00:41]} Nf6 {[%emt 0:00:08]} 3. e3 {[%emt 0:01:04]} c5 {[%emt 0:00:22]} 4. b3 {[%emt 0:05:02]} cxd4 {[%emt 0:00:41]} 5. exd4 {[%emt 0:02:02]} Nc6 {[%emt 0:00:17]} 6. Bd3 {[%emt 0:04:32]} Bg4 {[%emt 0:00:36]} 7. Bb2 {[%emt 0:11:05]} Qa5+ {[%emt 0:06:00]} 8. Bc3 {[%emt 0:07:31]} Qb6 {[%emt 0:07:05]} 9. Nbd2 {[%emt 0:02:46]} e6 {[%emt 0:05:08]} 10. a3 {[%emt 0:03:10]} Bd6 {[%emt 0:06:26]} 11. Bb2 {[%emt 0:02:52]} O-O {[%emt 0:11:00]} 12. O-O {[%emt 0:02:42]} Bf4 {[%emt 0:03:01]} 13. Qe1 $15 {[%emt 0:09:13]} Rfe8 {[%emt 0:16:38]} 14. Ne5 {[%emt 0:10:34]} Nxd4 {[%emt 0:03:31]} 15. Nxg4 {[%emt 0:12:54]} Nxg4 {[%emt 0:01:04]} 16. Nc4 {[%emt 0:05:14]} dxc4 {[%emt 0:12:53]} 17. Qd1 {[%emt 0:00:23]} cxd3 {[%emt 0:03:45]} 18. Qxg4 {[%emt 0:01:07]} dxc2 {[%emt 0:01:59]} 19. g3 {[%emt 0:06:04]} f5 {[%emt 0:03:59]} 20. Bxd4 {[%emt 0:05:13]} fxg4 {[%emt 0:00:16]} 21. Bxb6 {[%emt 0:00:29]} c1=Q {[%emt 0:00:12]} 22. Rfxc1 {[%emt 0:03:42]} Bxc1 {[%emt 0:00:22]} 23. Rxc1 {[%emt 0:00:03]} axb6 {[%emt 0:00:08]} 24. a4 {[%emt 0:00:52]} Rac8 {[%emt 0:00:12]} 25. Rd1 {[%emt 0:00:47]} Red8 {[%emt 0:00:04]} 26. Re1 {[%emt 0:00:37]} Kf7 {[%emt 0:00:19]} 27. Re4 {[%emt 0:00:45]} Rd1+ {[%emt 0:00:49]} 28. Kg2 {[%emt 0:00:23]} h5 {[%emt 0:00:16]} 29. h3 {[%emt 0:00:38]} gxh3+ {[%emt 0:00:44]} 30. Kxh3 {[%emt 0:00:04]} g5 {[%emt 0:00:40]} 31. f4 {[%emt 0:01:55]} g4+ {[%emt 0:00:31]} 32. Kh4 {[%emt 0:00:25]} Rg8 {[%emt 0:01:20]} 33. Kxh5 {[%emt 0:00:25]} Rh1# {[%emt 0:00:38]} 0-1

[Event "Fagernes Chess Open 2024"]
[Site "Fagernes"]
[Date "2024.03.29"]
[Round "7.5"]
[White "Ali, Karim"]
[Black "Nordahl, Frederik"]
[Result "0-1"]
[ECO "B10"]
[WhiteElo "1855"]
[BlackElo "1675"]
[Annotator "NA RC"]
[PlyCount "54"]
[EventDate "2024.03.25"]
[EventType "swiss"]
[EventCountry "NOR"]
[SourceTitle "playchess.com"]
[Source "ChessBase"]
[SourceQuality "1"]
[TimeControl "40/6000+30:2400+30"]

1. e4 {[%emt 0:03:27]} c6 {[%emt 0:00:06]} 2. d3 {[%emt 0:00:39]} d5 {[%emt 0:00:06]} 3. Nd2 {[%emt 0:00:15]} e5 {[%emt 0:00:08]} 4. Ngf3 {[%emt 0:00:04]} Bd6 {[%emt 0:00:05]} 5. d4 {[%emt 0:00:07]} exd4 {[%emt 0:03:23]} 6. Bd3 {[%emt 0:02:32] B10: Caro-Kann: 2 d3 and 2 c4.} Ne7 {[%emt 0:03:06]} 7. O-O {[%emt 0:03:04]} O-O {[%emt 0:00:57]} 8. e5 {[%emt 0:00:46]} Bc7 {[%emt 0:00:19]} 9. Nb3 {[%emt 0:02:23]} Nd7 {[%emt 0:02:39]} 10. Bxh7+ {[%emt 0:09:33]} Kxh7 {[%emt 0:06:13]} 11. Ng5+ {[%emt 0:02:50]} Kg6 {[%emt 0:00:12]} 12. f4 {[%emt 0:00:50]} Nxe5 {[%emt 0:01:27]} 13. fxe5 {[%emt 0:14:46]} Bxe5 {[%emt 0:00:09]} 14. h4 {[%emt 0:00:49]} Rh8 {[%emt 0:01:13]} 15. Nxf7 {[%emt 0:00:36]} Bh2+ {[%emt 0:04:03]} 16. Kh1 {[%emt 0:00:11]} Rxh4 {[%emt 0:00:40]} 17. Nxd8 {[%emt 0:00:15]} Nf5 {[%emt 0:00:10]} 18. Qd3 {[%emt 0:03:24]} Bd7 {[%emt 0:01:56]} 19. Nf7 {[%emt 0:00:29]} Bg3+ {[%emt 0:01:23]} 20. Kg1 {[%emt 0:00:20]} Bh2+ {[%emt 0:00:08]} 21. Kf2 {[%emt 0:00:41]} Bg3+ {[%emt 0:00:03]} 22. Ke2 {[%emt 0:05:56]} Re4+ {[%emt 0:00:18]} 23. Kd1 {[%emt 0:00:47]} Ne3+ {[%emt 0:00:54]} 24. Bxe3 {[%emt 0:00:48]} dxe3 {[%emt 0:00:53]} 25. Ke2 {[%emt 0:02:21]} a6 {[%emt 0:01:58]} 26. Nc5 {[%emt 0:00:51]} Bf2 {[%emt 0:00:18]} 27. Nxe4 {[%emt 0:00:47]} Bg4# {[%emt 0:00:09]} 0-1

[Event "Fagernes Chess Open 2024"]
[Site "Fagernes"]
[Date "2024.03.29"]
[Round "7.6"]
[White "Nordahl, Christine"]
[Black "Yilmaz, Kazim"]
[Result "1/2-1/2"]
[ECO "D38"]
[WhiteElo "1673"]
[BlackElo "1805"]
[Annotator "NA RC"]
[PlyCount "119"]
[EventDate "2024.03.25"]
[EventType "swiss"]
[EventCountry "NOR"]
[SourceTitle "playchess.com"]
[Source "ChessBase"]
[SourceQuality "1"]
[TimeControl "40/6000+30:2400+30"]

1. d4 {[%emt 0:00:03]} Nf6 {[%emt 0:00:05]} 2. c4 {[%emt 0:00:10]} e6 {[%emt 0:00:06]} 3. Nc3 {[%emt 0:00:59]} Bb4 {[%emt 0:00:07]} 4. Qc2 {[%emt 0:00:22]} d5 {[%emt 0:00:51]} 5. cxd5 {[%emt 0:00:57]} exd5 {[%emt 0:00:42]} 6. Bg5 {[%emt 0:03:17]} c6 {[%emt 0:01:33]} 7. Nf3 {[%emt 0:01:34]} Bg4 {[%emt 0:01:15] D38: Queen's Gambit Declined: Ragozin Defence (4 Nf3 Bb4).} 8. Ne5 {[%emt 0:04:33]} Bc8 {[%emt 0:03:28]} 9. e3 {[%emt 0:03:02]} O-O {[%emt 0:00:11]} 10. Bd3 {[%emt 0:01:20]} h6 {[%emt 0:00:08]} 11. Bh4 {[%emt 0:06:15]} Nbd7 {[%emt 0:00:47]} 12. f4 {[%emt 0:06:53]} Qa5 {[%emt 0:00:48]} 13. O-O {[%emt 0:02:33]} Bxc3 {[%emt 0:14:56]} 14. bxc3 {[%emt 0:00:10]} Nxe5 {[%emt 0:01:02]} 15. fxe5 {[%emt 0:00:08]} Ne4 {[%emt 0:00:47]} 16. Be7 {[%emt 0:07:00]} Re8 {[%emt 0:01:21]} 17. Bb4 {[%emt 0:00:24]} Qd8 {[%emt 0:01:13]} 18. Bxe4 {[%emt 0:01:57]} dxe4 {[%emt 0:00:04]} 19. Qxe4 {[%emt 0:00:12]} Qd5 {[%emt 0:01:50]} 20. Qxd5 {[%emt 0:03:00]} cxd5 {[%emt 0:00:06]} 21. e4 {[%emt 0:02:32]} Be6 {[%emt 0:01:48]} 22. exd5 {[%emt 0:02:20]} Bxd5 {[%emt 0:00:06]} 23. a4 {[%emt 0:00:34]} Rac8 {[%emt 0:03:18]} 24. a5 $14 {[%emt 0:03:29]} Re6 {[%emt 0:09:55]} 25. Bc5 {[%emt 0:04:26]} b6 {[%emt 0:01:29]} 26. axb6 {[%emt 0:02:21]} axb6 {[%emt 0:00:07]} 27. Bb4 {[%emt 0:00:06]} Rec6 {[%emt 0:08:10]} 28. Ra3 {[%emt 0:07:38]} Rc4 {[%emt 0:01:19]} 29. Rb1 {[%emt 0:01:42]} R8c6 {[%emt 0:05:39]} 30. Ra8+ {[%emt 0:05:14]} Rc8 {[%emt 0:00:18]} 31. Rxc8+ {[%emt 0:00:10]} Rxc8 {[%emt 0:00:06]} 32. g3 {[%emt 0:02:38]} b5 {[%emt 0:04:15]} 33. Kf2 {[%emt 0:01:39]} Ra8 {[%emt 0:01:52]} 34. Rb2 {[%emt 0:02:44]} Ra2 {[%emt 0:07:32]} 35. Rxa2 {[%emt 0:00:25]} Bxa2 {[%emt 0:00:41]} 36. Ke3 {[%emt 0:00:21]} Bd5 {[%emt 0:00:22]} 37. h4 {[%emt 0:01:27]} Kh7 {[%emt 0:02:28]} 38. h5 {[%emt 0:02:13]} Kg8 {[%emt 0:02:12]} 39. Kf4 {[%emt 0:00:28]} Kh7 {[%emt 0:01:39]} 40. g4 {[%emt 0:06:41]} Kg8 {[%emt 0:01:04]} 41. g5 {[%emt 0:43:13]} Kh7 {[%emt 0:42:47]} 42. Kf5 {[%emt 0:00:58]} hxg5 {[%emt 0:00:27]} 43. Kxg5 {[%emt 0:01:00]} Kg8 {[%emt 0:03:12]} 44. Bc5 {[%emt 0:03:08]} Be6 {[%emt 0:01:18]} 45. Ba3 {[%emt 0:00:53]} Bd5 {[%emt 0:02:06]} 46. h6 {[%emt 0:00:20]} Be4 {[%emt 0:01:20]} 47. hxg7 {[%emt 0:01:07]} Kxg7 {[%emt 0:00:10]} 48. Kf4 {[%emt 0:00:11]} Bd5 {[%emt 0:00:20]} 49. Kf5 {[%emt 0:00:04]} Be6+ {[%emt 0:04:25]} 50. Ke4 {[%emt 0:00:19]} f5+ {[%emt 0:00:11]} 51. exf6+ {[%emt 0:00:24]} Kxf6 {[%emt 0:00:06]} 52. d5 {[%emt 0:00:15]} Bh3 {[%emt 0:03:50]} 53. Kd4 {[%emt 0:00:20]} Bg2 {[%emt 0:02:42]} 54. Kc5 {[%emt 0:02:47]} Kf7 {[%emt 0:06:46]} 55. d6 {[%emt 0:00:59]} Ke6 {[%emt 0:00:19]} 56. Kxb5 {[%emt 0:00:12]} Kd7 {[%emt 0:00:07]} 57. c4 {[%emt 0:01:11]} Bh1 {[%emt 0:00:07]} 58. c5 {[%emt 0:00:07]} Bg2 {[%emt 0:00:05]} 59. Kb6 {[%emt 0:01:01]} Bh1 {[%emt 0:00:08]} 60. Kb5 {[%emt 0:00:23]} 1/2-1/2

[Event "Fagernes Chess Open 2024"]
[Site "Fagernes"]
[Date "2024.03.29"]
[Round "7.7"]
[White "Agustsson, Hafsteinn"]
[Black "Sending, Stale Andre"]
[Result "1/2-1/2"]
[ECO "B07"]
[WhiteElo "1825"]
[BlackElo "1959"]
[Annotator "NA RC"]
[PlyCount "82"]
[EventDate "2024.03.25"]
[EventType "swiss"]
[EventCountry "NOR"]
[SourceTitle "playchess.com"]
[Source "ChessBase"]
[SourceQuality "1"]
[TimeControl "40/6000+30:2400+30"]

1. e4 {[%emt 0:00:05]} d6 {[%emt 0:13:00]} 2. d4 {[%emt 0:00:27]} Nf6 {[%emt 0:00:11]} 3. Nc3 {[%emt 0:00:18]} Nbd7 {[%emt 0:00:05]} 4. f4 {[%emt 0:04:43]} e5 {[%emt 0:00:43]} 5. Nf3 {[%emt 0:01:38]} exd4 {[%emt 0:04:44]} 6. Nxd4 {[%emt 0:01:07]} Nc5 {[%emt 0:02:22] B07: Pirc Defence: Miscellaneous Systems.} 7. Bd3 {[%emt 0:08:57]} Bg4 {[%emt 0:02:15]} 8. Nf3 {[%emt 0:01:52]} d5 {[%emt 0:09:39]} 9. exd5 {[%emt 0:04:36]} Qe7+ {[%emt 0:08:27]} 10. Kf2 $1 {[%emt 0:13:18]} O-O-O {[%emt 0:16:16]} 11. h3 {[%emt 0:01:15]} Bxf3 {[%emt 0:04:40]} 12. Qxf3 {[%emt 0:00:50]} Nxd3+ {[%emt 0:01:36]} 13. Qxd3 {[%emt 0:02:57]} Nxd5 {[%emt 0:02:09]} 14. Nxd5 {[%emt 0:07:53]} Qc5+ {[%emt 0:00:13]} 15. Be3 {[%emt 0:00:27]} Qxd5 {[%emt 0:00:50]} 16. Qxd5 {[%emt 0:00:43]} Rxd5 {[%emt 0:00:04]} 17. Rad1 {[%emt 0:00:57]} Rxd1 {[%emt 0:09:29]} 18. Rxd1 {[%emt 0:00:09]} Be7 {[%emt 0:03:17]} 19. Bd4 $11 {[%emt 0:04:08]} (19. Bxa7 $2 {verliert.} b6 20. Kf3 Kb7 $19) 19... Rd8 {[%emt 0:00:35]} 20. Ke2 {[%emt 0:00:07]} f5 {[%emt 0:14:48]} 21. Be5 {[%emt 0:02:44]} Rxd1 {[%emt 0:01:52]} 22. Kxd1 {[%emt 0:00:09]} g6 {[%emt 0:00:20]} 23. Ke2 {[%emt 0:04:30]} h5 {[%emt 0:01:57]} 24. Kd3 {[%emt 0:06:22]} Kd7 {[%emt 0:03:45]} 25. a4 {[%emt 0:06:51]} a6 {[%emt 0:06:32]} 26. c4 {[%emt 0:00:32]} Bc5 {[%emt 0:02:05]} 27. Bd4 {[%emt 0:00:26]} Bd6 {[%emt 0:00:08]} 28. Be3 {[%emt 0:02:58]} Kc6 {[%emt 0:00:30]} 29. b3 {[%emt 0:06:15]} Bb4 {[%emt 0:01:30]} 30. Bd2 {[%emt 0:09:31]} Kc5 {[%emt 0:00:46]} 31. Be3+ {[%emt 0:00:12]} Kc6 {[%emt 0:00:03]} 32. Bd2 {[%emt 0:00:07]} Bxd2 {[%emt 0:00:12]} 33. Kxd2 {[%emt 0:00:06]} Kc5 {[%emt 0:00:22]} 34. Kc3 {[%emt 0:00:42]} a5 {[%emt 0:00:06]} 35. h4 {[%emt 0:00:17]} c6 {[%emt 0:00:10]} 36. Kd3 {[%emt 0:03:56]} Kb4 {[%emt 0:00:53]} 37. Kc2 {[%emt 0:00:06]} b6 {[%emt 0:01:48]} 38. Kb2 {[%emt 0:01:07]} Kc5 {[%emt 0:00:28]} 39. Kc3 {[%emt 0:00:08]} b5 {[%emt 0:00:07]} 40. g3 {[%emt 0:01:41]} b4+ {[%emt 0:00:00]} 41. Kd3 {[%emt 0:00:16]} Kd6 {[%emt 0:03:28]} 1/2-1/2